[Event "*** Titled Tuesday Blitz"]
[Site "Chess.com"]
[Date "2021.03.30"]
[Round "4"]
[White "Spring199"]
[Black "Sergey85Rodchenkov"]
[Result "0-1"]
[WhiteElo "2342"]
[BlackElo "2512"]
[TimeControl "180+1"]
[EndTime "10:41:17 PDT"]
[Termination "Sergey85Rodchenkov won on time"]

1. d4 {[%clk 0:03:00.9]} 1... Nf6 {[%clk 0:02:59.2]} 2. c4 {[%clk 0:03:00.6]}
2... e6 {[%clk 0:02:59.5]} 3. Nf3 {[%clk 0:02:59.6]} 3... b6 {[%clk 0:02:58]} 4.
g3 {[%clk 0:02:58.7]} 4... Bb7 {[%clk 0:02:58.2]} 5. Bg2 {[%clk 0:02:58.5]} 5...
Be7 {[%clk 0:02:58.9]} 6. O-O {[%clk 0:02:58.7]} 6... O-O {[%clk 0:02:59.5]} 7.
Nc3 {[%clk 0:02:59.1]} 7... Na6 {[%clk 0:02:59.7]} 8. Qc2 {[%clk 0:02:55.9]}
8... d5 {[%clk 0:02:59.4]} 9. a3 {[%clk 0:02:52.4]} 9... Re8 {[%clk 0:02:54.4]}
10. Ne5 {[%clk 0:02:46]} 10... Bf8 {[%clk 0:02:51.8]} 11. Bg5 {[%clk 0:02:42]}
11... h6 {[%clk 0:02:49]} 12. Bxf6 {[%clk 0:02:40.1]} 12... gxf6 {[%clk
0:02:49.2]} 13. Ng4 {[%clk 0:02:22.3]} 13... f5 {[%clk 0:02:44.6]} 14. Ne5
{[%clk 0:02:16.9]} 14... c6 {[%clk 0:02:38.9]} 15. cxd5 {[%clk 0:02:12.4]} 15...
cxd5 {[%clk 0:02:36.7]} 16. e3 {[%clk 0:02:11.2]} 16... Nc7 {[%clk 0:02:30.7]}
17. Qe2 {[%clk 0:02:08.6]} 17... Ba6 {[%clk 0:02:25.5]} 18. Qh5 {[%clk
0:02:07.6]} 18... Qf6 {[%clk 0:02:26.1]} 19. Rfe1 {[%clk 0:02:01.5]} 19... Rac8
{[%clk 0:02:19.1]} 20. g4 {[%clk 0:01:50]} 20... fxg4 {[%clk 0:02:16.5]} 21.
Qxg4+ {[%clk 0:01:48.8]} 21... Qg5 {[%clk 0:02:15.1]} 22. Qf3 {[%clk 0:01:45.4]}
22... f6 {[%clk 0:02:02.2]} 23. Ng4 {[%clk 0:01:43.5]} 23... Bg7 {[%clk
0:01:59.1]} 24. e4 {[%clk 0:01:42.4]} 24... h5 {[%clk 0:01:53.4]} 25. Ne3 {[%clk
0:01:40.2]} 25... Bb7 {[%clk 0:01:47.5]} 26. exd5 {[%clk 0:01:35.2]} 26... Nxd5
{[%clk 0:01:46.3]} 27. Ncxd5 {[%clk 0:01:34.3]} 27... exd5 {[%clk 0:01:41.2]}
28. Nf5 {[%clk 0:01:30.2]} 28... Kf8 {[%clk 0:01:36.8]} 29. Rxe8+ {[%clk
0:01:26.6]} 29... Rxe8 {[%clk 0:01:35.2]} 30. Nd6 {[%clk 0:01:23.1]} 30... Re7
{[%clk 0:01:34]} 31. Nxb7 {[%clk 0:01:17.1]} 31... Rxb7 {[%clk 0:01:33.8]} 32.
Qxd5 {[%clk 0:01:10.6]} 32... Qxd5 {[%clk 0:01:32.9]} 33. Bxd5 {[%clk
0:01:11.5]} 33... Rd7 {[%clk 0:01:32.9]} 34. Bf3 {[%clk 0:01:10.2]} 34... Rxd4
{[%clk 0:01:31.9]} 35. Bxh5 {[%clk 0:01:09.6]} 35... Rd2 {[%clk 0:01:32.1]} 36.
b4 {[%clk 0:01:08.3]} 36... f5 {[%clk 0:01:32.3]} 37. Re1 {[%clk 0:01:05.7]}
37... Bd4 {[%clk 0:01:32.3]} 38. Re2 {[%clk 0:01:04]} 38... Rd3 {[%clk
0:01:25.3]} 39. Re8+ {[%clk 0:00:57.9]} 39... Kg7 {[%clk 0:01:24.2]} 40. a4
{[%clk 0:00:46.8]} 40... Kf6 {[%clk 0:01:14.1]} 41. Kg2 {[%clk 0:00:36.3]} 41...
Ra3 {[%clk 0:01:08.7]} 42. Rd8 {[%clk 0:00:28.5]} 42... Be5 {[%clk 0:01:05.1]}
43. Be8 {[%clk 0:00:27.3]} 43... Rb3 {[%clk 0:00:54.2]} 44. Ra8 {[%clk
0:00:20.3]} 44... Rxb4 {[%clk 0:00:52.6]} 45. Rxa7 {[%clk 0:00:20]} 45... Rg4+
{[%clk 0:00:52.4]} 46. Kf1 {[%clk 0:00:16.9]} 46... Rh4 {[%clk 0:00:46.8]} 47.
Rb7 {[%clk 0:00:15.9]} 47... Bd4 {[%clk 0:00:46.6]} 48. Rf7+ {[%clk 0:00:12.3]}
48... Ke5 {[%clk 0:00:42.9]} 49. Bd7 {[%clk 0:00:11.8]} 49... f4 {[%clk
0:00:40.5]} 50. Rf5+ {[%clk 0:00:11]} 50... Kd6 {[%clk 0:00:39.9]} 51. Bc8
{[%clk 0:00:09.6]} 51... Be5 {[%clk 0:00:35.8]} 52. Rg5 {[%clk 0:00:07.4]} 52...
f3 {[%clk 0:00:33.8]} 53. Bb7 {[%clk 0:00:04.5]} 53... Rxh2 {[%clk 0:00:31.2]}
54. Bxf3 {[%clk 0:00:03.2]} 54... Bd4 {[%clk 0:00:31.4]} 55. Rg6+ {[%clk
0:00:02.9]} 55... Kc5 {[%clk 0:00:29.9]} 56. Rg2 {[%clk 0:00:03.8]} 56... Rh1+
{[%clk 0:00:29.4]} 57. Ke2 {[%clk 0:00:03.8]} 57... Ra1 {[%clk 0:00:29.6]} 58.
Rg5+ {[%clk 0:00:04.5]} 58... Kb4 {[%clk 0:00:28.1]} 59. Kd3 {[%clk 0:00:05.4]}
59... Bxf2 {[%clk 0:00:26.9]} 60. Ke4 {[%clk 0:00:05.1]} 60... Rxa4 {[%clk
0:00:25.1]} 61. Rg6 {[%clk 0:00:06]} 61... Bc5 {[%clk 0:00:24.3]} 62. Be2 {[%clk
0:00:05.7]} 62... Ra3 {[%clk 0:00:23.6]} 63. Kd5 {[%clk 0:00:04.4]} 63... Re3
{[%clk 0:00:23]} 64. Bg4 {[%clk 0:00:04.6]} 64... Kc3 {[%clk 0:00:21.1]} 65. Bd7
{[%clk 0:00:05.5]} 65... Rd3+ {[%clk 0:00:20.8]} 66. Kc6 {[%clk 0:00:05]} 66...
Rd4 {[%clk 0:00:20.1]} 67. Be8 {[%clk 0:00:04.7]} 67... Rd8 {[%clk 0:00:18.9]}
68. Kb5 {[%clk 0:00:04.3]} 68... Bd4 {[%clk 0:00:18.8]} 69. Rg3+ {[%clk
0:00:03.3]} 69... Kd2 {[%clk 0:00:17.8]} 70. Bg6 {[%clk 0:00:04.2]} 70... Be3
{[%clk 0:00:17.7]} 71. Rg2+ {[%clk 0:00:03.3]} 71... Kc3 {[%clk 0:00:16.5]} 72.
Rg3 {[%clk 0:00:02.5]} 72... Kd4 {[%clk 0:00:14.6]} 73. Rg2 {[%clk 0:00:03.4]}
73... Rd5+ {[%clk 0:00:14.5]} 74. Kxb6 {[%clk 0:00:02.8]} 74... Ke5+ {[%clk
0:00:13.5]} 75. Kc6 {[%clk 0:00:01.4]} 75... Rd6+ {[%clk 0:00:13.3]} 76. Kc7
{[%clk 0:00:01.5]} 76... Rd1 {[%clk 0:00:10.5]} 0-1

[Event "*** Titled Tuesday Blitz"]
[Site "Chess.com"]
[Date "2021.03.30"]
[Round "4"]
[White "ChessWarrior7197"]
[Black "TorFredrikKaasen"]
[Result "1/2-1/2"]
[WhiteElo "2896"]
[BlackElo "2742"]
[TimeControl "180+1"]
[EndTime "10:41:22 PDT"]
[Termination "Game drawn - insufficient material"]

1. Nf3 {[%clk 0:03:00.9]} 1... Nf6 {[%clk 0:02:59.3]} 2. c4 {[%clk 0:03:00.5]}
2... g6 {[%clk 0:02:59.1]} 3. b3 {[%clk 0:03:00.7]} 3... Bg7 {[%clk 0:02:59.4]}
4. Bb2 {[%clk 0:03:01.6]} 4... d6 {[%clk 0:02:59.3]} 5. g3 {[%clk 0:03:01.4]}
5... e5 {[%clk 0:02:59.6]} 6. Bg2 {[%clk 0:03:01.6]} 6... O-O {[%clk 0:03:00]}
7. O-O {[%clk 0:03:02]} 7... Re8 {[%clk 0:02:57]} 8. d3 {[%clk 0:03:01.2]} 8...
c6 {[%clk 0:02:53.9]} 9. Nc3 {[%clk 0:02:59.1]} 9... Nbd7 {[%clk 0:02:50.8]} 10.
Nd2 {[%clk 0:02:58.3]} 10... a5 {[%clk 0:02:49.4]} 11. a3 {[%clk 0:02:58]} 11...
h5 {[%clk 0:02:46.4]} 12. h3 {[%clk 0:02:55.6]} 12... Nf8 {[%clk 0:02:45.8]} 13.
b4 {[%clk 0:02:54.5]} 13... d5 {[%clk 0:02:43.9]} 14. cxd5 {[%clk 0:02:50.8]}
14... cxd5 {[%clk 0:02:44.8]} 15. b5 {[%clk 0:02:41.8]} 15... Be6 {[%clk
0:02:37.2]} 16. Rc1 {[%clk 0:02:38.9]} 16... Rc8 {[%clk 0:02:28.3]} 17. Na4
{[%clk 0:02:37.1]} 17... N6d7 {[%clk 0:02:24.4]} 18. Rxc8 {[%clk 0:02:30.9]}
18... Qxc8 {[%clk 0:02:25.3]} 19. Qa1 {[%clk 0:02:31.5]} 19... Qb8 {[%clk
0:02:16.1]} 20. Rc1 {[%clk 0:02:29.7]} 20... Rc8 {[%clk 0:02:16.6]} 21. b6
{[%clk 0:02:27.8]} 21... Rc6 {[%clk 0:02:11.3]} 22. Nb3 {[%clk 0:01:45.9]} 22...
Nxb6 {[%clk 0:02:09.9]} 23. Nac5 {[%clk 0:01:45]} 23... Qa7 {[%clk 0:01:35.8]}
24. Bxe5 {[%clk 0:01:39]} 24... Bxe5 {[%clk 0:01:28.7]} 25. Qxe5 {[%clk
0:01:39.9]} 25... Nbd7 {[%clk 0:01:29]} 26. Nxd7 {[%clk 0:01:16.3]} 26... Rxc1+
{[%clk 0:01:29.9]} 27. Nxc1 {[%clk 0:01:16.9]} 27... Nxd7 {[%clk 0:01:30.8]} 28.
Qc7 {[%clk 0:01:01.5]} 28... Qd4 {[%clk 0:01:24.6]} 29. Qxa5 {[%clk 0:00:55.3]}
29... Qb2 {[%clk 0:01:23.2]} 30. Qc7 {[%clk 0:00:51.7]} 30... Qxa3 {[%clk
0:01:17]} 31. d4 {[%clk 0:00:48.9]} 31... Qa1 {[%clk 0:01:15.4]} 32. e3 {[%clk
0:00:47]} 32... Qb2 {[%clk 0:01:05.6]} 33. Bf1 {[%clk 0:00:41.2]} 33... Qb1
{[%clk 0:01:02.3]} 34. Bd3 {[%clk 0:00:26.4]} 34... Qb2 {[%clk 0:01:01]} 35. Kg2
{[%clk 0:00:22.5]} 35... b5 {[%clk 0:00:51.3]} 36. Ne2 {[%clk 0:00:19]} 36... b4
{[%clk 0:00:44.5]} 37. Nf4 {[%clk 0:00:19.2]} 37... Nf8 {[%clk 0:00:45.2]} 38.
Qb8 {[%clk 0:00:16.6]} 38... Kg7 {[%clk 0:00:33.9]} 39. Qe5+ {[%clk 0:00:06.8]}
39... Kg8 {[%clk 0:00:27.8]} 40. Nxd5 {[%clk 0:00:06.9]} 40... Bxd5+ {[%clk
0:00:28.1]} 41. Qxd5 {[%clk 0:00:07.8]} 41... Qc3 {[%clk 0:00:28.3]} 42. Bc4
{[%clk 0:00:08]} 42... Ne6 {[%clk 0:00:27.5]} 43. Qb5 {[%clk 0:00:07.1]} 43...
Kg7 {[%clk 0:00:25.7]} 44. d5 {[%clk 0:00:06.5]} 44... Ng5 {[%clk 0:00:22]} 45.
d6 {[%clk 0:00:05.3]} 45... Qf6 {[%clk 0:00:15.3]} 46. d7 {[%clk 0:00:04.7]}
46... Qf3+ {[%clk 0:00:15.5]} 47. Kf1 {[%clk 0:00:03.8]} 47... Nxh3 {[%clk
0:00:10.3]} 48. Qe5+ {[%clk 0:00:03]} 48... Kh7 {[%clk 0:00:10.3]} 49. Qb2
{[%clk 0:00:02.9]} 49... Qd1+ {[%clk 0:00:07.7]} 50. Kg2 {[%clk 0:00:03]} 50...
Qg1+ {[%clk 0:00:07.2]} 51. Kf3 {[%clk 0:00:02.6]} 51... Qd1+ {[%clk 0:00:04.5]}
52. Ke4 {[%clk 0:00:02.2]} 52... Qxd7 {[%clk 0:00:05]} 53. Bd5 {[%clk
0:00:02.2]} 53... Ng5+ {[%clk 0:00:05.6]} 54. Ke5 {[%clk 0:00:03]} 54... f6+
{[%clk 0:00:05.7]} 55. Kd4 {[%clk 0:00:02.7]} 55... Ne6+ {[%clk 0:00:03.9]} 56.
Kc4 {[%clk 0:00:03.1]} 56... Qc7+ {[%clk 0:00:04.1]} 57. Kxb4 {[%clk 0:00:03.4]}
57... Qc5+ {[%clk 0:00:04.4]} 58. Ka4 {[%clk 0:00:03.2]} 58... Qxd5 {[%clk
0:00:05.3]} 59. Qxf6 {[%clk 0:00:03.9]} 59... Nc5+ {[%clk 0:00:05.2]} 60. Kb4
{[%clk 0:00:04.2]} 60... Nd3+ {[%clk 0:00:05.6]} 61. Kc3 {[%clk 0:00:04.4]}
61... Qe5+ {[%clk 0:00:05.2]} 62. Qxe5 {[%clk 0:00:04.5]} 62... Nxe5 {[%clk
0:00:06.1]} 63. Kd2 {[%clk 0:00:04]} 63... Kh6 {[%clk 0:00:05.8]} 64. f4 {[%clk
0:00:03.1]} 64... Ng4 {[%clk 0:00:05.9]} 65. e4 {[%clk 0:00:03.5]} 65... Kg7
{[%clk 0:00:05.6]} 66. Kd3 {[%clk 0:00:03.2]} 66... Kf7 {[%clk 0:00:06.3]} 67.
Kd4 {[%clk 0:00:03.6]} 67... Ke6 {[%clk 0:00:07]} 68. Kd3 {[%clk 0:00:04]} 68...
Nf6 {[%clk 0:00:06.2]} 69. Kd4 {[%clk 0:00:03.7]} 69... Ng8 {[%clk 0:00:06.4]}
70. Ke3 {[%clk 0:00:03.9]} 70... Ne7 {[%clk 0:00:07]} 71. Kf3 {[%clk 0:00:04]}
71... Kf6 {[%clk 0:00:07.6]} 72. g4 {[%clk 0:00:04.3]} 72... hxg4+ {[%clk
0:00:03.4]} 73. Kxg4 {[%clk 0:00:05.2]} 73... Kf7 {[%clk 0:00:02.4]} 74. f5
{[%clk 0:00:04.7]} 74... gxf5+ {[%clk 0:00:02]} 75. exf5 {[%clk 0:00:04.3]}
75... Nxf5 {[%clk 0:00:02.9]} 1/2-1/2

[Event "*** Titled Tuesday Blitz"]
[Site "Chess.com"]
[Date "2021.03.30"]
[Round "4"]
[White "Tenamu"]
[Black "Savva09022009"]
[Result "1-0"]
[WhiteElo "2428"]
[BlackElo "2595"]
[TimeControl "180+1"]
[EndTime "10:41:28 PDT"]
[Termination "Tenamu won by checkmate"]

1. e4 {[%clk 0:03:00.9]} 1... c5 {[%clk 0:02:59.9]} 2. Nf3 {[%clk 0:03:00.9]}
2... d6 {[%clk 0:02:48.6]} 3. Bb5+ {[%clk 0:03:00.2]} 3... Nd7 {[%clk
0:02:47.8]} 4. O-O {[%clk 0:02:59.2]} 4... Nf6 {[%clk 0:02:41.5]} 5. Re1 {[%clk
0:02:59.1]} 5... g6 {[%clk 0:02:37.1]} 6. c3 {[%clk 0:02:58.4]} 6... Bg7 {[%clk
0:02:37.8]} 7. d4 {[%clk 0:02:58.5]} 7... a6 {[%clk 0:02:31.9]} 8. Ba4 {[%clk
0:02:54.6]} 8... O-O {[%clk 0:02:28]} 9. h3 {[%clk 0:02:47]} 9... b5 {[%clk
0:02:24.7]} 10. Bc2 {[%clk 0:02:45.3]} 10... Bb7 {[%clk 0:02:25.6]} 11. Nbd2
{[%clk 0:02:24.8]} 11... Qc7 {[%clk 0:02:21.8]} 12. d5 {[%clk 0:01:50.1]} 12...
Rfe8 {[%clk 0:02:16.6]} 13. c4 {[%clk 0:01:28.6]} 13... e6 {[%clk 0:02:08.4]}
14. dxe6 {[%clk 0:01:26.7]} 14... fxe6 {[%clk 0:02:09.3]} 15. e5 {[%clk
0:01:22.5]} 15... Nxe5 {[%clk 0:02:08.6]} 16. Nxe5 {[%clk 0:01:22.3]} 16... dxe5
{[%clk 0:02:09.5]} 17. Qe2 {[%clk 0:01:22.8]} 17... Nh5 {[%clk 0:02:01.5]} 18.
Be4 {[%clk 0:01:16.1]} 18... Nf4 {[%clk 0:01:57.2]} 19. Qf1 {[%clk 0:01:16]}
19... Rad8 {[%clk 0:01:49.1]} 20. g3 {[%clk 0:01:13.7]} 20... Bxe4 {[%clk
0:01:45.4]} 21. Nxe4 {[%clk 0:01:04.1]} 21... Nd3 {[%clk 0:01:46.3]} 22. Re2
{[%clk 0:01:01.3]} 22... bxc4 {[%clk 0:01:44.7]} 23. Be3 {[%clk 0:00:56.9]}
23... Qc6 {[%clk 0:01:44.5]} 24. Qg2 {[%clk 0:00:55.3]} 24... Rd5 {[%clk
0:01:39.9]} 25. Rc2 {[%clk 0:00:51.1]} 25... Qa4 {[%clk 0:01:35.6]} 26. Re2
{[%clk 0:00:39.2]} 26... Rb8 {[%clk 0:01:29.9]} 27. Nc3 {[%clk 0:00:37.2]} 27...
Qc6 {[%clk 0:01:25.8]} 28. Rd1 {[%clk 0:00:30.6]} 28... Rd6 {[%clk 0:01:09.9]}
29. Ne4 {[%clk 0:00:22.6]} 29... Rd5 {[%clk 0:01:00.2]} 30. Nc3 {[%clk
0:00:21.8]} 30... a5 {[%clk 0:00:57]} 31. b3 {[%clk 0:00:21.9]} 31... cxb3
{[%clk 0:00:53.1]} 32. axb3 {[%clk 0:00:22.3]} 32... Nb4 {[%clk 0:00:50.2]} 33.
Rc1 {[%clk 0:00:18.5]} 33... Nd3 {[%clk 0:00:44.6]} 34. Rd1 {[%clk 0:00:18.2]}
34... Nb4 {[%clk 0:00:36.5]} 35. Rc1 {[%clk 0:00:18.6]} 35... Rd3 {[%clk
0:00:33.5]} 36. Qxc6 {[%clk 0:00:15.8]} 36... Nxc6 {[%clk 0:00:34.4]} 37. Ne4
{[%clk 0:00:16.5]} 37... Bf8 {[%clk 0:00:30.9]} 38. Bxc5 {[%clk 0:00:15.2]}
38... Nd4 {[%clk 0:00:24]} 39. Ra2 {[%clk 0:00:09.3]} 39... Nxb3 {[%clk
0:00:21.6]} 40. Rb1 {[%clk 0:00:09.6]} 40... Rdd8 {[%clk 0:00:17.6]} 41. Bxf8
{[%clk 0:00:08.5]} 41... Kxf8 {[%clk 0:00:18.5]} 42. Ra3 {[%clk 0:00:08.9]}
42... Nd4 {[%clk 0:00:16.5]} 43. Rxb8 {[%clk 0:00:09.8]} 43... Rxb8 {[%clk
0:00:17.1]} 44. Rxa5 {[%clk 0:00:10.7]} 44... Nc6 {[%clk 0:00:15.5]} 45. Rc5
{[%clk 0:00:10.3]} 45... Rc8 {[%clk 0:00:14.8]} 46. Nd6 {[%clk 0:00:08.5]} 46...
Rc7 {[%clk 0:00:15]} 47. Nb5 {[%clk 0:00:09.4]} 47... Rc8 {[%clk 0:00:15.1]} 48.
Kg2 {[%clk 0:00:10]} 48... Ke7 {[%clk 0:00:14.8]} 49. Nc3 {[%clk 0:00:07.2]}
49... Kd6 {[%clk 0:00:14.6]} 50. Ne4+ {[%clk 0:00:06.8]} 50... Ke7 {[%clk
0:00:14.4]} 51. h4 {[%clk 0:00:07.7]} 51... Kd7 {[%clk 0:00:14.2]} 52. g4 {[%clk
0:00:07.7]} 52... Rf8 {[%clk 0:00:10.9]} 53. g5 {[%clk 0:00:07.5]} 53... Rf4
{[%clk 0:00:11]} 54. f3 {[%clk 0:00:08]} 54... Rxh4 {[%clk 0:00:09.8]} 55. Rc1
{[%clk 0:00:07.1]} 55... Nd4 {[%clk 0:00:09.5]} 56. Rd1 {[%clk 0:00:04.2]} 56...
Kc6 {[%clk 0:00:09]} 57. Rc1+ {[%clk 0:00:04]} 57... Kd7 {[%clk 0:00:09.5]} 58.
Rd1 {[%clk 0:00:04.2]} 58... h6 {[%clk 0:00:09.9]} 59. Kg3 {[%clk 0:00:03.7]}
59... hxg5 {[%clk 0:00:09.2]} 60. Nxg5 {[%clk 0:00:04.4]} 60... Rh5 {[%clk
0:00:09]} 61. Nf7 {[%clk 0:00:03.7]} 61... Rf5 {[%clk 0:00:06.7]} 62. Nxe5+
{[%clk 0:00:03.6]} 62... Rxe5 {[%clk 0:00:07.6]} 63. Rxd4+ {[%clk 0:00:04.2]}
63... Ke7 {[%clk 0:00:06.5]} 64. Ra4 {[%clk 0:00:04.2]} 64... Kf6 {[%clk
0:00:06.7]} 65. Kg4 {[%clk 0:00:04]} 65... Rg5+ {[%clk 0:00:06.8]} 66. Kf4
{[%clk 0:00:03.9]} 66... Rh5 {[%clk 0:00:06.5]} 67. Kg3 {[%clk 0:00:04]} 67...
Rh1 {[%clk 0:00:06.5]} 68. Ra8 {[%clk 0:00:03.8]} 68... Kg5 {[%clk 0:00:06.3]}
69. Ra5+ {[%clk 0:00:03.1]} 69... Kf6 {[%clk 0:00:06.2]} 70. Ra8 {[%clk
0:00:04]} 70... Kf5 {[%clk 0:00:06.7]} 71. Rf8+ {[%clk 0:00:03.3]} 71... Kg5
{[%clk 0:00:07.2]} 72. f4+ {[%clk 0:00:03.8]} 72... Kh6 {[%clk 0:00:05.9]} 73.
Rh8+ {[%clk 0:00:04.7]} 73... Kg7 {[%clk 0:00:06.5]} 74. Rxh1 {[%clk 0:00:05.6]}
74... Kf6 {[%clk 0:00:07.2]} 75. Kg4 {[%clk 0:00:06.5]} 75... e5 {[%clk
0:00:07.3]} 76. fxe5+ {[%clk 0:00:07.4]} 76... Kxe5 {[%clk 0:00:08.2]} 77. Kg5
{[%clk 0:00:08.3]} 77... Kd4 {[%clk 0:00:09.1]} 78. Kxg6 {[%clk 0:00:09.2]}
78... Ke3 {[%clk 0:00:10]} 79. Rh4 {[%clk 0:00:09.7]} 79... Kd3 {[%clk
0:00:05.3]} 80. Kg5 {[%clk 0:00:10.6]} 80... Ke3 {[%clk 0:00:05.9]} 81. Rf4
{[%clk 0:00:11.3]} 81... Kd3 {[%clk 0:00:06.8]} 82. Kf5 {[%clk 0:00:12.2]} 82...
Kc3 {[%clk 0:00:07.7]} 83. Ke5 {[%clk 0:00:12.7]} 83... Kd3 {[%clk 0:00:08.6]}
84. Re4 {[%clk 0:00:13.3]} 84... Kc3 {[%clk 0:00:09.5]} 85. Rd4 {[%clk
0:00:13.5]} 85... Kb3 {[%clk 0:00:10.4]} 86. Kd5 {[%clk 0:00:14.4]} 86... Ka3
{[%clk 0:00:11.3]} 87. Kc5 {[%clk 0:00:14.7]} 87... Kb3 {[%clk 0:00:12.2]} 88.
Rc4 {[%clk 0:00:15.6]} 88... Ka3 {[%clk 0:00:13.1]} 89. Rc3+ {[%clk 0:00:14.7]}
89... Ka2 {[%clk 0:00:13.4]} 90. Kb4 {[%clk 0:00:14.9]} 90... Kb2 {[%clk
0:00:14.3]} 91. Kc4 {[%clk 0:00:15.2]} 91... Ka2 {[%clk 0:00:15.2]} 92. Rb3
{[%clk 0:00:15.7]} 92... Ka1 {[%clk 0:00:14.6]} 93. Kc3 {[%clk 0:00:16.3]} 93...
Ka2 {[%clk 0:00:15.5]} 94. Kc2 {[%clk 0:00:17.2]} 94... Ka1 {[%clk 0:00:16.4]}
95. Ra3# {[%clk 0:00:18.1]} 1-0